[Event "Late-Titled-Tuesday-Blitz-November-28-2023"]
[Site "Chess.com"]
[Date "2023.11.28"]
[Round "9"]
[White "1800_strength"]
[Black "AryanTari"]
[Result "0-1"]
[WhiteElo "2798"]
[BlackElo "2982"]
[TimeControl "180+1"]
[EndTime "15:41:57 PST"]
[Termination "AryanTari won by resignation"]

1. Nc3 {[%clk 0:03:00.9]} 1... c5 {[%clk 0:02:53.2]} 2. e4 {[%clk 0:03:01.8]}
2... Nc6 {[%clk 0:02:51.2]} 3. f4 {[%clk 0:03:02.7]} 3... g6 {[%clk 0:02:51.1]}
4. Nf3 {[%clk 0:03:03.6]} 4... Bg7 {[%clk 0:02:51.4]} 5. Bc4 {[%clk 0:03:04.3]}
5... e6 {[%clk 0:02:49.6]} 6. f5 {[%clk 0:03:04.8]} 6... gxf5 {[%clk 0:02:37.9]}
7. exf5 {[%clk 0:03:05.7]} 7... d5 {[%clk 0:02:38.2]} 8. Bb5 {[%clk 0:03:00.9]}
8... Ne7 {[%clk 0:02:33.9]} 9. fxe6 {[%clk 0:02:57.8]} 9... fxe6 {[%clk
0:02:27.8]} 10. O-O {[%clk 0:02:48.3]} 10... O-O {[%clk 0:02:27.4]} 11. Bxc6
{[%clk 0:02:32.4]} 11... Nxc6 {[%clk 0:02:26.5]} 12. d3 {[%clk 0:02:29.3]} 12...
e5 {[%clk 0:02:21.8]} 13. Bg5 {[%clk 0:02:19]} 13... Qd6 {[%clk 0:02:19.1]} 14.
Nb5 {[%clk 0:02:16.7]} 14... Qd7 {[%clk 0:02:15.5]} 15. Qd2 {[%clk 0:02:10.4]}
15... a6 {[%clk 0:02:11.7]} 16. Nc3 {[%clk 0:02:10.4]} 16... Qd6 {[%clk
0:02:11.9]} 17. h3 {[%clk 0:01:53.3]} 17... Bd7 {[%clk 0:02:11.6]} 18. Rae1
{[%clk 0:01:45.9]} 18... b5 {[%clk 0:02:01.7]} 19. Nd1 {[%clk 0:01:23.2]} 19...
Nd4 {[%clk 0:01:50.2]} 20. Nh2 {[%clk 0:01:15.5]} 20... Qg6 {[%clk 0:01:45.4]}
21. c3 {[%clk 0:01:13.2]} 21... Ne6 {[%clk 0:01:40.1]} 22. Bh4 {[%clk
0:00:50.7]} 22... Nf4 {[%clk 0:01:40.1]} 23. Kh1 {[%clk 0:00:50.6]} 23... Qxd3
{[%clk 0:01:32]} 24. Qc1 {[%clk 0:00:45.4]} 24... Qg6 {[%clk 0:01:31.8]} 25. Qd2
{[%clk 0:00:43.1]} 25... Nd3 {[%clk 0:01:29.8]} 26. Re3 {[%clk 0:00:38.5]} 26...
e4 {[%clk 0:01:18.1]} 27. Rg3 {[%clk 0:00:37.1]} 27... Qh5 {[%clk 0:01:17.7]}
28. Bf6 {[%clk 0:00:32.1]} 28... Rxf6 {[%clk 0:01:17.7]} 29. Rxf6 {[%clk
0:00:31.6]} 29... Kh8 {[%clk 0:01:18.3]} 30. Rf1 {[%clk 0:00:30.2]} 30... Bh6
{[%clk 0:00:53.5]} 31. Qc2 {[%clk 0:00:26.7]} 31... Qe5 {[%clk 0:00:53.6]} 32.
Rg4 {[%clk 0:00:25.6]} 32... Re8 {[%clk 0:00:44.9]} 33. Qe2 {[%clk 0:00:19.9]}
33... Bg7 {[%clk 0:00:42.7]} 34. Rh4 {[%clk 0:00:19.1]} 34... Qg5 {[%clk
0:00:41.8]} 35. Rh5 {[%clk 0:00:18.3]} 35... Qg3 {[%clk 0:00:40.3]} 36. Ne3
{[%clk 0:00:17.9]} 36... Nf4 {[%clk 0:00:38.7]} 37. Rxf4 {[%clk 0:00:15.9]}
37... Qxf4 {[%clk 0:00:39.6]} 38. Nxd5 {[%clk 0:00:16.1]} 38... Qc1+ {[%clk
0:00:39.7]} 39. Nf1 {[%clk 0:00:16.8]} 39... Rf8 {[%clk 0:00:38.3]} 40. Ne3
{[%clk 0:00:16.5]} 40... b4 {[%clk 0:00:34.4]} 41. cxb4 {[%clk 0:00:16.2]} 41...
Bb5 {[%clk 0:00:34.1]} 42. Qd2 {[%clk 0:00:13.6]} 42... Rxf1+ {[%clk 0:00:28.6]}
43. Nxf1 {[%clk 0:00:13.9]} 43... Qxf1+ {[%clk 0:00:29.3]} 44. Kh2 {[%clk
0:00:14.6]} 44... Bd4 {[%clk 0:00:27.7]} 45. bxc5 {[%clk 0:00:03.2]} 45... Qf6
{[%clk 0:00:11.4]} 46. b4 {[%clk 0:00:02.3]} 46... e3 {[%clk 0:00:06.1]} 47. Qd1
{[%clk 0:00:02.1]} 47... e2 {[%clk 0:00:05.4]} 48. Qd2 {[%clk 0:00:02.2]} 48...
Be5+ {[%clk 0:00:05.8]} 49. g3 {[%clk 0:00:02.7]} 49... Qf2+ {[%clk 0:00:05.6]}
0-1

[Event "Late-Titled-Tuesday-Blitz-November-28-2023"]
[Site "Chess.com"]
[Date "2023.11.28"]
[Round "9"]
[White "VitaliyChayka"]
[Black "PawnEatingZombie"]
[Result "1-0"]
[WhiteElo "2424"]
[BlackElo "2195"]
[TimeControl "180+1"]
[EndTime "15:42:02 PST"]
[Termination "VitaliyChayka won on time"]

1. d4 {[%clk 0:03:00.9]} 1... Nf6 {[%clk 0:02:58.9]} 2. Bf4 {[%clk 0:03:01.5]}
2... g6 {[%clk 0:02:57.4]} 3. e3 {[%clk 0:03:02.1]} 3... Bg7 {[%clk 0:02:57.9]}
4. h3 {[%clk 0:03:02.7]} 4... d6 {[%clk 0:02:56.9]} 5. Nf3 {[%clk 0:03:03.3]}
5... Nbd7 {[%clk 0:02:56.7]} 6. Be2 {[%clk 0:03:03.6]} 6... O-O {[%clk
0:02:56.7]} 7. O-O {[%clk 0:03:03.2]} 7... e6 {[%clk 0:02:54.3]} 8. c4 {[%clk
0:02:59.2]} 8... Qe7 {[%clk 0:02:54.3]} 9. Nc3 {[%clk 0:02:59.1]} 9... a6 {[%clk
0:02:49.7]} 10. Bh2 {[%clk 0:02:55.6]} 10... b6 {[%clk 0:02:48.7]} 11. a4 {[%clk
0:02:51.3]} 11... Bb7 {[%clk 0:02:44.6]} 12. a5 {[%clk 0:02:48.9]} 12... Ne4
{[%clk 0:02:40.5]} 13. Nxe4 {[%clk 0:02:46.8]} 13... Bxe4 {[%clk 0:02:40.3]} 14.
axb6 {[%clk 0:02:46.4]} 14... cxb6 {[%clk 0:02:39.5]} 15. Nd2 {[%clk 0:02:42.6]}
15... Bb7 {[%clk 0:02:37.2]} 16. Bf3 {[%clk 0:02:41]} 16... Bxf3 {[%clk
0:02:19.9]} 17. Nxf3 {[%clk 0:02:41.9]} 17... Rfc8 {[%clk 0:02:16.4]} 18. Qb3
{[%clk 0:02:35.7]} 18... e5 {[%clk 0:02:01.9]} 19. Ra3 {[%clk 0:02:21.3]} 19...
a5 {[%clk 0:01:54.6]} 20. Qb5 {[%clk 0:02:17.5]} 20... Rab8 {[%clk 0:01:34.3]}
21. Rd1 {[%clk 0:02:15.2]} 21... exd4 {[%clk 0:01:16.8]} 22. exd4 {[%clk
0:01:54.8]} 22... Qe2 {[%clk 0:01:16.1]} 23. Re1 {[%clk 0:01:46.3]} 23... Qxc4
{[%clk 0:01:13.7]} 24. Qxd7 {[%clk 0:01:45.2]} 24... Rd8 {[%clk 0:00:59.3]} 25.
Qa4 {[%clk 0:01:41.1]} 25... Rbc8 {[%clk 0:00:49.3]} 26. Qxc4 {[%clk 0:01:39.2]}
26... Rxc4 {[%clk 0:00:49.5]} 27. Rc3 {[%clk 0:01:37.6]} 27... Rb4 {[%clk
0:00:48.3]} 28. b3 {[%clk 0:01:17.7]} 28... Bxd4 {[%clk 0:00:45.7]} 29. Nxd4
{[%clk 0:01:17.1]} 29... Rxd4 {[%clk 0:00:46.6]} 30. Rc6 {[%clk 0:01:07.8]}
30... b5 {[%clk 0:00:45.7]} 31. Ra6 {[%clk 0:01:00.1]} 31... a4 {[%clk
0:00:44.5]} 32. bxa4 {[%clk 0:00:59.8]} 32... Rxa4 {[%clk 0:00:29.1]} 33. Rxa4
{[%clk 0:00:58.6]} 33... bxa4 {[%clk 0:00:28.9]} 34. Ra1 {[%clk 0:00:58.5]}
34... d5 {[%clk 0:00:15.1]} 35. Rxa4 {[%clk 0:00:56.9]} 35... d4 {[%clk
0:00:15.8]} 36. Bf4 {[%clk 0:00:53.8]} 36... d3 {[%clk 0:00:15.9]} 37. Ra2
{[%clk 0:00:51.7]} 37... Kg7 {[%clk 0:00:15.8]} 38. f3 {[%clk 0:00:48.9]} 38...
h5 {[%clk 0:00:13.2]} 39. Kf2 {[%clk 0:00:48.8]} 39... f6 {[%clk 0:00:13.2]} 40.
Rd2 {[%clk 0:00:45.5]} 40... g5 {[%clk 0:00:12.7]} 41. Bc7 {[%clk 0:00:42.8]}
41... Rd7 {[%clk 0:00:11.8]} 42. Bb6 {[%clk 0:00:42.9]} 42... f5 {[%clk
0:00:11.1]} 43. f4 {[%clk 0:00:38.4]} 43... g4 {[%clk 0:00:09.8]} 44. hxg4
{[%clk 0:00:33.4]} 44... fxg4 {[%clk 0:00:09.5]} 45. Ke3 {[%clk 0:00:33.5]}
45... Kg6 {[%clk 0:00:08.2]} 46. Rxd3 {[%clk 0:00:32.2]} 46... Re7+ {[%clk
0:00:06.6]} 47. Kf2 {[%clk 0:00:31.2]} 47... Kf5 {[%clk 0:00:07]} 48. Be3 {[%clk
0:00:21.6]} 48... h4 {[%clk 0:00:04.9]} 49. Rd5+ {[%clk 0:00:20.5]} 49... Ke4
{[%clk 0:00:04.1]} 50. Rd4+ {[%clk 0:00:20.7]} 50... Kf5 {[%clk 0:00:04.1]} 51.
Ra4 {[%clk 0:00:18.6]} 51... h3 {[%clk 0:00:02.6]} 52. gxh3 {[%clk 0:00:17.2]}
52... gxh3 {[%clk 0:00:02.9]} 53. Kf3 {[%clk 0:00:17.8]} 53... Rh7 {[%clk
0:00:02.1]} 54. Ra5+ {[%clk 0:00:17.4]} 1-0

[Event "Late-Titled-Tuesday-Blitz-November-28-2023"]
[Site "Chess.com"]
[Date "2023.11.28"]
[Round "9"]
[White "Hypercar"]
[Black "Meri-Arabidze"]
[Result "0-1"]
[WhiteElo "2535"]
[BlackElo "2687"]
[TimeControl "180+1"]
[EndTime "15:42:04 PST"]
[Termination "Meri-Arabidze won on time"]

1. d4 {[%clk 0:03:00.9]} 1... f5 {[%clk 0:03:00]} 2. Nf3 {[%clk 0:02:56.2]} 2...
Nf6 {[%clk 0:02:59.9]} 3. g3 {[%clk 0:02:56.3]} 3... b6 {[%clk 0:03:00.1]} 4.
Bg2 {[%clk 0:02:56.5]} 4... Bb7 {[%clk 0:03:00.6]} 5. O-O {[%clk 0:02:57.2]}
5... e6 {[%clk 0:03:01.2]} 6. c4 {[%clk 0:02:57.8]} 6... a5 {[%clk 0:03:00.3]}
7. Nc3 {[%clk 0:02:56.3]} 7... Bb4 {[%clk 0:02:59.8]} 8. Qc2 {[%clk 0:02:55.1]}
8... O-O {[%clk 0:02:58.7]} 9. a3 {[%clk 0:02:53.9]} 9... Bxc3 {[%clk
0:02:58.6]} 10. Qxc3 {[%clk 0:02:54.8]} 10... a4 {[%clk 0:02:58.5]} 11. Bf4
{[%clk 0:02:44.9]} 11... Be4 {[%clk 0:02:42.1]} 12. Rad1 {[%clk 0:02:43.8]}
12... Qc8 {[%clk 0:02:37.2]} 13. h3 {[%clk 0:02:37.6]} 13... Qb7 {[%clk
0:02:35.9]} 14. Nh4 {[%clk 0:02:36.9]} 14... Bxg2 {[%clk 0:02:35.2]} 15. Nxg2
{[%clk 0:02:37.8]} 15... d6 {[%clk 0:02:27.3]} 16. Bg5 {[%clk 0:02:32.5]} 16...
Ne4 {[%clk 0:02:26.3]} 17. Qc1 {[%clk 0:02:31.2]} 17... Nd7 {[%clk 0:02:22]} 18.
h4 {[%clk 0:02:27.4]} 18... Rae8 {[%clk 0:02:14.4]} 19. Be3 {[%clk 0:02:26.5]}
19... Nef6 {[%clk 0:02:12.4]} 20. Qc2 {[%clk 0:02:19.9]} 20... Qa8 {[%clk
0:02:08.4]} 21. Nf4 {[%clk 0:02:16.9]} 21... Ng4 {[%clk 0:02:07.8]} 22. d5
{[%clk 0:02:13.9]} 22... Nxe3 {[%clk 0:02:05.9]} 23. fxe3 {[%clk 0:02:13.4]}
23... Nc5 {[%clk 0:01:57.4]} 24. Nxe6 {[%clk 0:01:58.2]} 24... Nxe6 {[%clk
0:01:56.4]} 25. dxe6 {[%clk 0:01:58.7]} 25... g6 {[%clk 0:01:46.2]} 26. Rf3
{[%clk 0:01:49.3]} 26... Rxe6 {[%clk 0:01:45]} 27. Kf2 {[%clk 0:01:49.4]} 27...
Re4 {[%clk 0:01:41]} 28. Rd4 {[%clk 0:01:44.8]} 28... Rfe8 {[%clk 0:01:40.8]}
29. Rxe4 {[%clk 0:01:37.3]} 29... Rxe4 {[%clk 0:01:41.7]} 30. Rf4 {[%clk
0:01:33.2]} 30... Re5 {[%clk 0:01:41.8]} 31. Qd3 {[%clk 0:01:27.8]} 31... Qh1
{[%clk 0:01:39.1]} 32. Rf3 {[%clk 0:01:22.3]} 32... Qc1 {[%clk 0:01:24.6]} 33.
b4 {[%clk 0:01:14.6]} 33... axb3 {[%clk 0:01:22.3]} 34. Qxb3 {[%clk 0:01:14.7]}
34... Rc5 {[%clk 0:01:16.9]} 35. Qa4 {[%clk 0:01:12.7]} 35... Qxc4 {[%clk
0:01:11.2]} 36. Qe8+ {[%clk 0:01:12.2]} 36... Kg7 {[%clk 0:01:11.6]} 37. g4
{[%clk 0:00:41]} 37... Re5 {[%clk 0:01:03.5]} 38. Qd7+ {[%clk 0:00:32]} 38...
Qf7 {[%clk 0:01:03.3]} 39. Qxf7+ {[%clk 0:00:24.1]} 39... Kxf7 {[%clk
0:01:04.2]} 40. e4 {[%clk 0:00:24.8]} 40... Rxe4 {[%clk 0:00:56.5]} 41. gxf5
{[%clk 0:00:22.9]} 41... Rxh4 {[%clk 0:00:57.2]} 42. fxg6+ {[%clk 0:00:22.1]}
42... Kxg6 {[%clk 0:00:58.1]} 43. Rc3 {[%clk 0:00:20.5]} 43... c5 {[%clk
0:00:56.3]} 44. Rd3 {[%clk 0:00:19.8]} 44... Rd4 {[%clk 0:00:52.8]} 45. Rb3
{[%clk 0:00:18.7]} 45... h5 {[%clk 0:00:45.5]} 46. Rxb6 {[%clk 0:00:18.4]} 46...
h4 {[%clk 0:00:42.8]} 47. a4 {[%clk 0:00:18.2]} 47... Kf5 {[%clk 0:00:38.6]} 48.
a5 {[%clk 0:00:16.9]} 48... Ke5 {[%clk 0:00:38.7]} 49. Rb8 {[%clk 0:00:16.2]}
49... Ra4 {[%clk 0:00:37.8]} 50. Rh8 {[%clk 0:00:13]} 50... Kd5 {[%clk
0:00:27.3]} 51. a6 {[%clk 0:00:10.1]} 51... Kc6 {[%clk 0:00:26.3]} 52. a7 {[%clk
0:00:07.2]} 52... Rxa7 {[%clk 0:00:26.8]} 53. Rxh4 {[%clk 0:00:07]} 53... Ra3
{[%clk 0:00:26.7]} 54. Ke1 {[%clk 0:00:06.4]} 54... d5 {[%clk 0:00:25.8]} 55.
Rh8 {[%clk 0:00:04.7]} 55... Kb5 {[%clk 0:00:25.6]} 56. Rh4 {[%clk 0:00:03.1]}
56... d4 {[%clk 0:00:24.7]} 57. Kd2 {[%clk 0:00:02.4]} 57... Kc4 {[%clk
0:00:24.8]} 0-1

[Event "Late-Titled-Tuesday-Blitz-November-28-2023"]
[Site "Chess.com"]
[Date "2023.11.28"]
[Round "9"]
[White "HalfIsCrayfish"]
[Black "Korchmar_Vasiliy"]
[Result "0-1"]
[WhiteElo "2597"]
[BlackElo "2730"]
[TimeControl "180+1"]
[EndTime "15:42:08 PST"]
[Termination "Korchmar_Vasiliy won by resignation"]

1. e4 {[%clk 0:03:00.9]} 1... c5 {[%clk 0:02:59.2]} 2. Nc3 {[%clk 0:03:01.4]}
2... d6 {[%clk 0:02:59.4]} 3. d4 {[%clk 0:03:01.6]} 3... cxd4 {[%clk 0:03:00.3]}
4. Qxd4 {[%clk 0:03:02.3]} 4... Nc6 {[%clk 0:03:00.9]} 5. Bb5 {[%clk 0:03:03]}
5... Bd7 {[%clk 0:02:54.3]} 6. Bxc6 {[%clk 0:03:02.9]} 6... bxc6 {[%clk
0:02:55.2]} 7. Bg5 {[%clk 0:02:59.3]} 7... Rb8 {[%clk 0:02:33.7]} 8. O-O-O
{[%clk 0:02:50.3]} 8... Qb6 {[%clk 0:02:33.5]} 9. Qxb6 {[%clk 0:02:39.1]} 9...
axb6 {[%clk 0:02:34.4]} 10. Nge2 {[%clk 0:02:33.7]} 10... h6 {[%clk 0:02:34]}
11. Be3 {[%clk 0:02:28.2]} 11... g5 {[%clk 0:02:34.9]} 12. h4 {[%clk 0:02:24]}
12... g4 {[%clk 0:02:34.8]} 13. f4 {[%clk 0:02:23.9]} 13... Bg7 {[%clk 0:02:29]}
14. Bd4 {[%clk 0:02:23]} 14... Nf6 {[%clk 0:02:26.6]} 15. Ng3 {[%clk 0:02:15.8]}
15... c5 {[%clk 0:02:19.2]} 16. Bxf6 {[%clk 0:02:11]} 16... Bxf6 {[%clk
0:02:19.2]} 17. Nd5 {[%clk 0:02:11.4]} 17... Bd4 {[%clk 0:02:01]} 18. c3 {[%clk
0:01:59.5]} 18... Bf2 {[%clk 0:02:01]} 19. Ne2 {[%clk 0:01:13.6]} 19... g3
{[%clk 0:01:49]} 20. f5 {[%clk 0:01:13.5]} 20... Bc6 {[%clk 0:01:42.5]} 21. Rh3
{[%clk 0:01:06.5]} 21... e6 {[%clk 0:01:42.8]} 22. fxe6 {[%clk 0:00:54.5]} 22...
fxe6 {[%clk 0:01:43.7]} 23. Ndf4 {[%clk 0:00:53.9]} 23... Bxe4 {[%clk
0:01:35.8]} 24. Rxd6 {[%clk 0:00:41.2]} 24... Kf7 {[%clk 0:01:35]} 25. Nxg3
{[%clk 0:00:34.5]} 25... Be3+ {[%clk 0:01:27.3]} 26. Kd1 {[%clk 0:00:33.9]}
26... Bxf4 {[%clk 0:01:28.2]} 27. Nxe4 {[%clk 0:00:27.1]} 27... Bxd6 {[%clk
0:01:28.5]} 28. Nxd6+ {[%clk 0:00:28]} 28... Ke7 {[%clk 0:01:29.2]} 29. Nc4
{[%clk 0:00:26.2]} 29... Rhg8 {[%clk 0:01:28.8]} 30. g3 {[%clk 0:00:20.3]} 30...
b5 {[%clk 0:01:26.1]} 31. Ne5 {[%clk 0:00:19.8]} 31... Kd6 {[%clk 0:01:16.1]}
32. Nf7+ {[%clk 0:00:17.8]} 32... Kc6 {[%clk 0:01:09.1]} 33. Nxh6 {[%clk
0:00:16]} 33... Rgf8 {[%clk 0:00:54.1]} 34. Ke2 {[%clk 0:00:09.9]} 34... b4
{[%clk 0:00:51]} 35. c4 {[%clk 0:00:05.4]} 35... Ra8 {[%clk 0:00:50.7]} 36. g4
{[%clk 0:00:04.3]} 36... Rxa2 {[%clk 0:00:50.3]} 37. Rb3 {[%clk 0:00:05]} 37...
Rfa8 {[%clk 0:00:45.5]} 38. Kd2 {[%clk 0:00:02.5]} 38... R8a3 {[%clk 0:00:44.6]}
39. Kc2 {[%clk 0:00:03.1]} 39... Rxb3 {[%clk 0:00:25.9]} 40. Kxb3 {[%clk
0:00:04]} 40... Ra1 {[%clk 0:00:26.8]} 41. g5 {[%clk 0:00:04.2]} 41... Rg1
{[%clk 0:00:26.7]} 42. Nf7 {[%clk 0:00:04.3]} 42... Kd7 {[%clk 0:00:23.2]} 43.
g6 {[%clk 0:00:03.3]} 43... Ke7 {[%clk 0:00:19.9]} 44. h5 {[%clk 0:00:03.9]}
44... Kf6 {[%clk 0:00:16.7]} 45. Kc2 {[%clk 0:00:03.6]} 45... Rh1 {[%clk
0:00:13.7]} 46. Nd6 {[%clk 0:00:01.4]} 46... Rh2+ {[%clk 0:00:14.3]} 47. Kd3
{[%clk 0:00:01.4]} 47... Rxh5 {[%clk 0:00:15.1]} 48. Ne4+ {[%clk 0:00:01.8]}
48... Kxg6 {[%clk 0:00:14.7]} 49. Nd6 {[%clk 0:00:01.3]} 49... Kf6 {[%clk
0:00:14]} 50. b3 {[%clk 0:00:01.3]} 50... Rh3+ {[%clk 0:00:13.5]} 51. Ke4 {[%clk
0:00:01.8]} 51... Rxb3 {[%clk 0:00:13.2]} 52. Nb7 {[%clk 0:00:02]} 52... Rc3
{[%clk 0:00:13.3]} 53. Kf4 {[%clk 0:00:01.2]} 53... Rxc4+ {[%clk 0:00:13.7]} 54.
Ke3 {[%clk 0:00:01.7]} 54... b3 {[%clk 0:00:14.4]} 55. Kd3 {[%clk 0:00:01.6]}
55... b2 {[%clk 0:00:14.7]} 0-1

[Event "Late-Titled-Tuesday-Blitz-November-28-2023"]
[Site "Chess.com"]
[Date "2023.11.28"]
[Round "9"]
[White "TRadjabov"]
[Black "Hikaru"]
[Result "0-1"]
[WhiteElo "3013"]
[BlackElo "3225"]
[TimeControl "180+1"]
[EndTime "15:42:09 PST"]
[Termination "Hikaru won by resignation"]

1. d4 {[%clk 0:02:57.4]} 1... a6 {[%clk 0:02:57.9]} 2. a4 {[%clk 0:02:56]} 2...
Nf6 {[%clk 0:02:52.6]} 3. h3 {[%clk 0:02:56.2]} 3... c5 {[%clk 0:02:46.5]} 4. e3
{[%clk 0:02:52.8]} 4... b6 {[%clk 0:02:45.3]} 5. Nf3 {[%clk 0:02:52.3]} 5... Bb7
{[%clk 0:02:45.5]} 6. c4 {[%clk 0:02:52.7]} 6... e6 {[%clk 0:02:45.3]} 7. Nc3
{[%clk 0:02:52.4]} 7... d5 {[%clk 0:02:43.5]} 8. cxd5 {[%clk 0:02:50.8]} 8...
Nxd5 {[%clk 0:02:43]} 9. Bd3 {[%clk 0:02:49.8]} 9... cxd4 {[%clk 0:02:33.9]} 10.
exd4 {[%clk 0:02:49.8]} 10... Nd7 {[%clk 0:02:32.7]} 11. O-O {[%clk 0:02:48.2]}
11... Be7 {[%clk 0:02:32.9]} 12. Re1 {[%clk 0:02:42.6]} 12... O-O {[%clk
0:02:32.7]} 13. Qe2 {[%clk 0:02:39.3]} 13... Nb4 {[%clk 0:02:25.5]} 14. Bb1
{[%clk 0:02:29.7]} 14... Nf6 {[%clk 0:02:24.3]} 15. Bf4 {[%clk 0:02:25]} 15...
Nfd5 {[%clk 0:02:22.4]} 16. Be5 {[%clk 0:02:22.7]} 16... Rc8 {[%clk 0:02:18.7]}
17. Ra3 {[%clk 0:01:44.1]} 17... Qd7 {[%clk 0:02:03]} 18. Bxg7 {[%clk
0:01:10.2]} 18... Nxc3 {[%clk 0:01:40.7]} 19. bxc3 {[%clk 0:01:04.9]} 19... Bxf3
{[%clk 0:01:01.4]} 20. Qxf3 {[%clk 0:01:00.2]} 20... Kxg7 {[%clk 0:01:01.7]} 21.
cxb4 {[%clk 0:00:48.4]} 21... Qxd4 {[%clk 0:00:43.6]} 22. Rae3 {[%clk
0:00:22.4]} 22... Qf6 {[%clk 0:00:30.8]} 23. Qh5 {[%clk 0:00:20.9]} 23... Qh4
{[%clk 0:00:29.9]} 24. Qe2 {[%clk 0:00:19.7]} 24... Bf6 {[%clk 0:00:25.9]} 25.
Rg3+ {[%clk 0:00:13.7]} 25... Kh8 {[%clk 0:00:26]} 26. Qf3 {[%clk 0:00:10.5]}
26... Qh6 {[%clk 0:00:20.6]} 27. Kh2 {[%clk 0:00:08.1]} 27... Rc4 {[%clk
0:00:18.8]} 28. b5 {[%clk 0:00:05.8]} 28... a5 {[%clk 0:00:18.1]} 29. Re4 {[%clk
0:00:04.5]} 29... Rxe4 {[%clk 0:00:18.2]} 30. Qxe4 {[%clk 0:00:05]} 30... Qh5
{[%clk 0:00:16]} 31. Rf3 {[%clk 0:00:04.8]} 31... Qe5+ {[%clk 0:00:16.2]} 32. g3
{[%clk 0:00:04.6]} 32... Qxe4 {[%clk 0:00:16]} 33. Bxe4 {[%clk 0:00:05.5]} 33...
Bd4 {[%clk 0:00:16.8]} 34. Kg2 {[%clk 0:00:04.6]} 34... f5 {[%clk 0:00:17]} 35.
Bc6 {[%clk 0:00:04.4]} 35... Kg7 {[%clk 0:00:16.4]} 36. Rd3 {[%clk 0:00:04.1]}
36... e5 {[%clk 0:00:17]} 37. f4 {[%clk 0:00:04.4]} 37... Kf6 {[%clk 0:00:17.7]}
38. fxe5+ {[%clk 0:00:04.7]} 38... Bxe5 {[%clk 0:00:18.4]} 39. Kf3 {[%clk
0:00:04.8]} 39... h5 {[%clk 0:00:17.7]} 40. Rd7 {[%clk 0:00:04.1]} 40... Rg8
{[%clk 0:00:17.9]} 41. Bd5 {[%clk 0:00:02]} 41... Rxg3+ {[%clk 0:00:17.9]} 42.
Kf2 {[%clk 0:00:02.6]} 42... Rxh3 {[%clk 0:00:18.2]} 43. Rf7+ {[%clk 0:00:03]}
43... Kg6 {[%clk 0:00:18.5]} 44. Rb7 {[%clk 0:00:03.1]} 44... Bd4+ {[%clk
0:00:18.2]} 45. Kg2 {[%clk 0:00:03.6]} 45... Rd3 {[%clk 0:00:17.7]} 46. Bf7+
{[%clk 0:00:02.5]} 46... Kg5 {[%clk 0:00:18]} 47. Rd7 {[%clk 0:00:03]} 47... h4
{[%clk 0:00:17.2]} 48. Kf1 {[%clk 0:00:02]} 48... h3 {[%clk 0:00:17.4]} 49. Ke2
{[%clk 0:00:01.3]} 49... Re3+ {[%clk 0:00:17.4]} 50. Kd2 {[%clk 0:00:01.9]}
50... h2 {[%clk 0:00:17.4]} 51. Bd5 {[%clk 0:00:02.6]} 51... Bc5 {[%clk
0:00:17.3]} 52. Rh7 {[%clk 0:00:02.8]} 52... Re5 {[%clk 0:00:15.8]} 53. Bc6
{[%clk 0:00:02.7]} 53... Bg1 {[%clk 0:00:16.2]} 54. Rg7+ {[%clk 0:00:02.5]}
54... Kf4 {[%clk 0:00:16.4]} 55. Rh7 {[%clk 0:00:03]} 55... Rc5 {[%clk
0:00:16.5]} 56. Kd3 {[%clk 0:00:03.1]} 56... Rc1 {[%clk 0:00:16.5]} 57. Rh4+
{[%clk 0:00:02.9]} 57... Kg5 {[%clk 0:00:16.5]} 58. Rh7 {[%clk 0:00:03.8]} 58...
Ra1 {[%clk 0:00:16.8]} 0-1

[Event "Late-Titled-Tuesday-Blitz-November-28-2023"]
[Site "Chess.com"]
[Date "2023.11.28"]
[Round "9"]
[White "Elsa167"]
[Black "karinachess1"]
[Result "1-0"]
[WhiteElo "2910"]
[BlackElo "2626"]
[TimeControl "180+1"]
[EndTime "15:42:16 PST"]
[Termination "Elsa167 won by resignation"]

1. d4 {[%clk 0:03:00.9]} 1... Nf6 {[%clk 0:02:59.7]} 2. c4 {[%clk 0:03:01.4]}
2... e6 {[%clk 0:03:00.1]} 3. Nf3 {[%clk 0:03:01.2]} 3... d5 {[%clk 0:03:00.2]}
4. Nc3 {[%clk 0:03:01.7]} 4... Be7 {[%clk 0:02:58.7]} 5. g3 {[%clk 0:03:01.8]}
5... O-O {[%clk 0:02:54.2]} 6. Bg2 {[%clk 0:03:02]} 6... c6 {[%clk 0:02:54.8]}
7. O-O {[%clk 0:03:01.6]} 7... b6 {[%clk 0:02:55.2]} 8. Ne5 {[%clk 0:03:00.6]}
8... Bb7 {[%clk 0:02:55.2]} 9. e4 {[%clk 0:02:57.7]} 9... Nbd7 {[%clk
0:02:25.7]} 10. Nxc6 {[%clk 0:02:48.6]} 10... Bxc6 {[%clk 0:02:23.5]} 11. exd5
{[%clk 0:02:49.3]} 11... exd5 {[%clk 0:02:21.1]} 12. cxd5 {[%clk 0:02:50.2]}
12... Bb7 {[%clk 0:01:56.2]} 13. d6 {[%clk 0:02:50.1]} 13... Bxg2 {[%clk
0:01:56.4]} 14. dxe7 {[%clk 0:02:50.6]} 14... Qxe7 {[%clk 0:01:55.9]} 15. Kxg2
{[%clk 0:02:51.3]} 15... Rad8 {[%clk 0:01:55.1]} 16. Qf3 {[%clk 0:02:47.1]}
16... h6 {[%clk 0:01:53.7]} 17. a3 {[%clk 0:02:41.5]} 17... Rfe8 {[%clk
0:01:38.3]} 18. Bf4 {[%clk 0:02:28.4]} 18... Nf8 {[%clk 0:01:37.9]} 19. d5
{[%clk 0:02:15.2]} 19... Qd7 {[%clk 0:01:38.1]} 20. Rad1 {[%clk 0:02:13]} 20...
Ng4 {[%clk 0:01:23.7]} 21. Rfe1 {[%clk 0:02:03.8]} 21... Ng6 {[%clk 0:01:21.6]}
22. Rxe8+ {[%clk 0:01:54.2]} 22... Rxe8 {[%clk 0:01:22.5]} 23. d6 {[%clk
0:01:51.7]} 23... Nxf4+ {[%clk 0:01:00.5]} 24. Qxf4 {[%clk 0:01:51.8]} 24... Nf6
{[%clk 0:00:58.5]} 25. Qf3 {[%clk 0:01:47.8]} 25... Re6 {[%clk 0:00:53.3]} 26.
Qd3 {[%clk 0:01:19.6]} 26... Ne8 {[%clk 0:00:52.9]} 27. Ne4 {[%clk 0:00:38.2]}
27... f5 {[%clk 0:00:51.3]} 28. Nc3 {[%clk 0:00:34.8]} 28... Rxd6 {[%clk
0:00:50.2]} 29. Qc4+ {[%clk 0:00:35]} 29... Kh7 {[%clk 0:00:49.2]} 30. Rxd6
{[%clk 0:00:31]} 30... Nxd6 {[%clk 0:00:44]} 31. Qd5 {[%clk 0:00:31.3]} 31...
Qb7 {[%clk 0:00:37.2]} 32. Qxb7 {[%clk 0:00:26.6]} 32... Nxb7 {[%clk 0:00:38.1]}
33. Kf3 {[%clk 0:00:26.5]} 33... Nc5 {[%clk 0:00:35.5]} 34. Ke3 {[%clk
0:00:25.9]} 34... Kg6 {[%clk 0:00:32.4]} 35. Nb5 {[%clk 0:00:24.6]} 35... a6
{[%clk 0:00:30.1]} 36. Nc7 {[%clk 0:00:25.1]} 36... a5 {[%clk 0:00:28.3]} 37.
Nd5 {[%clk 0:00:16.1]} 37... Nd7 {[%clk 0:00:25.8]} 38. Kd4 {[%clk 0:00:14]}
38... Kf7 {[%clk 0:00:25.1]} 39. h4 {[%clk 0:00:14.7]} 39... Ke6 {[%clk
0:00:21.5]} 40. h5 {[%clk 0:00:13.9]} 40... Kd6 {[%clk 0:00:18.9]} 41. b4 {[%clk
0:00:09.2]} 41... axb4 {[%clk 0:00:18.5]} 42. axb4 {[%clk 0:00:10.1]} 42... Ke6
{[%clk 0:00:13.7]} 43. Nf4+ {[%clk 0:00:09.6]} 43... Kd6 {[%clk 0:00:10.4]} 44.
Kc4 {[%clk 0:00:10.2]} 44... Kc7 {[%clk 0:00:02.8]} 45. Ne6+ {[%clk 0:00:10.1]}
45... Kd6 {[%clk 0:00:02.7]} 46. Nxg7 {[%clk 0:00:11]} 46... Nf6 {[%clk
0:00:02.1]} 47. Nxf5+ {[%clk 0:00:11.1]} 47... Ke5 {[%clk 0:00:02.2]} 48. Nxh6
{[%clk 0:00:11.8]} 48... Ne4 {[%clk 0:00:03.1]} 49. Ng4+ {[%clk 0:00:08.8]}
49... Kf5 {[%clk 0:00:03.3]} 50. h6 {[%clk 0:00:07.6]} 50... Kg6 {[%clk
0:00:03.3]} 51. Kb5 {[%clk 0:00:06.9]} 51... Kf5 {[%clk 0:00:01.3]} 52. h7
{[%clk 0:00:06.8]} 52... Nd6+ {[%clk 0:00:01.9]} 53. Kxb6 {[%clk 0:00:07.1]}
53... Nf7 {[%clk 0:00:02.8]} 54. Nh6+ {[%clk 0:00:07.4]} 54... Kg6 {[%clk
0:00:02.8]} 55. Nxf7 {[%clk 0:00:07.7]} 55... Kg7 {[%clk 0:00:03.7]} 56. h8=Q+
{[%clk 0:00:08.1]} 1-0